[Event "Late-Titled-Tuesday-Blitz-June-04-2024"]
[Site "Chess.com"]
[Date "2024.06.04"]
[Round "9"]
[White "Abund"]
[Black "Tunahan_Makaraci"]
[Result "0-1"]
[WhiteElo "2783"]
[BlackElo "2586"]
[TimeControl "180+1"]
[EndTime "15:43:33 PDT"]
[Termination "Tunahan_Makaraci won by checkmate"]

1. e4 {[%clk 0:03:00.9]} 1... Nf6 {[%clk 0:02:58.3]} 2. e5 {[%clk 0:02:57.6]}
2... Nd5 {[%clk 0:02:58.5]} 3. d4 {[%clk 0:02:57.7]} 3... d6 {[%clk 0:02:59.1]}
4. Nf3 {[%clk 0:02:57.4]} 4... Nb6 {[%clk 0:02:58.9]} 5. a4 {[%clk 0:02:56.3]}
5... a5 {[%clk 0:02:59.5]} 6. h3 {[%clk 0:02:54.8]} 6... g6 {[%clk 0:02:59.2]}
7. Be2 {[%clk 0:02:49.1]} 7... Bg7 {[%clk 0:02:58.9]} 8. O-O {[%clk 0:02:49.4]}
8... O-O {[%clk 0:02:58.5]} 9. Nc3 {[%clk 0:02:48.1]} 9... Nc6 {[%clk
0:02:58.4]} 10. exd6 {[%clk 0:02:36.6]} 10... cxd6 {[%clk 0:02:59.2]} 11. Nb5
{[%clk 0:02:35]} 11... Bf5 {[%clk 0:02:51.8]} 12. c3 {[%clk 0:02:33.6]} 12... h6
{[%clk 0:02:51]} 13. Be3 {[%clk 0:02:25.8]} 13... Nd5 {[%clk 0:02:46]} 14. Bd2
{[%clk 0:02:24.7]} 14... Nc7 {[%clk 0:02:46]} 15. Na3 {[%clk 0:02:15.6]} 15...
e5 {[%clk 0:02:44.4]} 16. dxe5 {[%clk 0:02:00.3]} 16... dxe5 {[%clk 0:02:44.4]}
17. Be3 {[%clk 0:01:58.3]} 17... Nd5 {[%clk 0:02:29.7]} 18. Bc5 {[%clk
0:01:51.4]} 18... Re8 {[%clk 0:02:29.7]} 19. Bc4 {[%clk 0:01:50.2]} 19... Be6
{[%clk 0:02:23.6]} 20. Bb5 {[%clk 0:01:30]} 20... Nf4 {[%clk 0:02:10.8]} 21. Qc2
{[%clk 0:01:16.3]} 21... Bf5 {[%clk 0:02:04.7]} 22. Qb3 {[%clk 0:01:13.2]} 22...
Be4 {[%clk 0:02:04.2]} 23. Rfd1 {[%clk 0:00:53.2]} 23... Qf6 {[%clk 0:01:59.2]}
24. Ne1 {[%clk 0:00:46.7]} 24... Qg5 {[%clk 0:01:40.6]} 25. Be3 {[%clk
0:00:24.2]} 25... Nxh3+ {[%clk 0:01:22]} 26. Kf1 {[%clk 0:00:24.3]} 26... Nf4
{[%clk 0:01:08.4]} 27. Rd7 {[%clk 0:00:22.2]} 27... Bxg2+ {[%clk 0:01:01.8]} 28.
Nxg2 {[%clk 0:00:22]} 28... Qxg2+ {[%clk 0:01:02.7]} 29. Ke1 {[%clk 0:00:22.2]}
29... Rf8 {[%clk 0:00:31.5]} 30. Rad1 {[%clk 0:00:21.2]} 30... Rad8 {[%clk
0:00:25.2]} 31. R1d6 {[%clk 0:00:19.7]} 31... Rxd7 {[%clk 0:00:23.1]} 32. Rxd7
{[%clk 0:00:20]} 32... h5 {[%clk 0:00:23]} 33. Bc4 {[%clk 0:00:18.5]} 33... Nd8
{[%clk 0:00:18.7]} 34. Bb6 {[%clk 0:00:11.7]} 34... Nde6 {[%clk 0:00:18.6]} 35.
Nc2 {[%clk 0:00:06.8]} 35... h4 {[%clk 0:00:18.5]} 36. Bf1 {[%clk 0:00:03.6]}
36... Qe4+ {[%clk 0:00:17.2]} 37. Ne3 {[%clk 0:00:04]} 37... h3 {[%clk
0:00:14.8]} 38. Bxh3 {[%clk 0:00:03.2]} 38... Nxh3 {[%clk 0:00:14.6]} 39. Bxa5
{[%clk 0:00:03.3]} 39... Bh6 {[%clk 0:00:13.6]} 40. Bb4 {[%clk 0:00:03.1]} 40...
Bxe3 {[%clk 0:00:13.1]} 41. Bxf8 {[%clk 0:00:03]} 41... Bxf2+ {[%clk 0:00:11.3]}
42. Kd1 {[%clk 0:00:03.7]} 42... Qf3+ {[%clk 0:00:09.9]} 43. Kc2 {[%clk
0:00:03.7]} 43... Nxf8 {[%clk 0:00:09.4]} 44. Rd8 {[%clk 0:00:03.6]} 44... Qf5+
{[%clk 0:00:08.9]} 45. Kd1 {[%clk 0:00:03.8]} 45... Kg7 {[%clk 0:00:07.8]} 46.
Qb4 {[%clk 0:00:03.3]} 46... Ne6 {[%clk 0:00:07.7]} 47. Ra8 {[%clk 0:00:03.3]}
47... Qd3+ {[%clk 0:00:06.6]} 48. Kc1 {[%clk 0:00:03.2]} 48... Be3# {[%clk
0:00:07.1]} 0-1

[Event "Late-Titled-Tuesday-Blitz-June-04-2024"]
[Site "Chess.com"]
[Date "2024.06.04"]
[Round "9"]
[White "DishonorOnYourCow"]
[Black "HajiyevKanan"]
[Result "1/2-1/2"]
[WhiteElo "2577"]
[BlackElo "2517"]
[TimeControl "180+1"]
[EndTime "15:43:34 PDT"]
[Termination "Game drawn by stalemate"]

1. d4 {[%clk 0:03:00.9]} 1... d5 {[%clk 0:02:31.2]} 2. c4 {[%clk 0:02:59.5]}
2... c6 {[%clk 0:02:31.3]} 3. Nf3 {[%clk 0:02:59.5]} 3... Nf6 {[%clk 0:02:31.4]}
4. e3 {[%clk 0:03:00]} 4... Bf5 {[%clk 0:02:30.9]} 5. Nc3 {[%clk 0:02:59.8]}
5... e6 {[%clk 0:02:30.9]} 6. Nh4 {[%clk 0:02:59.5]} 6... Bg4 {[%clk 0:02:28.4]}
7. Qb3 {[%clk 0:02:57.8]} 7... Qb6 {[%clk 0:02:28.1]} 8. c5 {[%clk 0:02:56.6]}
8... Qc7 {[%clk 0:02:27.7]} 9. f3 {[%clk 0:02:51.6]} 9... Bh5 {[%clk 0:02:24.9]}
10. g4 {[%clk 0:02:50.1]} 10... Bg6 {[%clk 0:02:23.6]} 11. Bd2 {[%clk
0:02:42.2]} 11... Be7 {[%clk 0:02:21]} 12. Nxg6 {[%clk 0:02:32.9]} 12... hxg6
{[%clk 0:02:20.8]} 13. O-O-O {[%clk 0:02:21.1]} 13... b6 {[%clk 0:02:17.3]} 14.
cxb6 {[%clk 0:02:19.8]} 14... axb6 {[%clk 0:02:15.9]} 15. Kb1 {[%clk 0:02:20]}
15... Nbd7 {[%clk 0:02:01.3]} 16. h4 {[%clk 0:02:11.4]} 16... b5 {[%clk
0:01:48]} 17. g5 {[%clk 0:01:59]} 17... Nh5 {[%clk 0:01:45.3]} 18. Rc1 {[%clk
0:01:42.9]} 18... Qb7 {[%clk 0:01:39.6]} 19. Ne2 {[%clk 0:01:37.1]} 19... Nb6
{[%clk 0:01:36.2]} 20. Nf4 {[%clk 0:01:10.5]} 20... Nxf4 {[%clk 0:01:12.3]} 21.
exf4 {[%clk 0:01:09.7]} 21... Nc4 {[%clk 0:01:12.7]} 22. Bxc4 {[%clk 0:01:08]}
22... dxc4 {[%clk 0:01:13.6]} 23. Rxc4 {[%clk 0:01:06]} 23... Ra6 {[%clk
0:00:41.8]} 24. Rcc1 {[%clk 0:00:57.9]} 24... Qd7 {[%clk 0:00:38.1]} 25. Bb4
{[%clk 0:00:46.4]} 25... Qd5 {[%clk 0:00:37.6]} 26. Qxd5 {[%clk 0:00:44.6]}
26... exd5 {[%clk 0:00:36.4]} 27. Rhe1 {[%clk 0:00:42.6]} 27... Ra7 {[%clk
0:00:32.3]} 28. Rxc6 {[%clk 0:00:40.3]} 28... Rxh4 {[%clk 0:00:26.4]} 29. Rc8+
{[%clk 0:00:37.9]} 29... Kd7 {[%clk 0:00:24.1]} 30. Rxe7+ {[%clk 0:00:36.8]}
30... Kxc8 {[%clk 0:00:24.7]} 31. Rxa7 {[%clk 0:00:37.2]} 31... Rxf4 {[%clk
0:00:24.6]} 32. Bd6 {[%clk 0:00:25.7]} 32... Rxf3 {[%clk 0:00:20.2]} 33. Be5
{[%clk 0:00:25.9]} 33... f6 {[%clk 0:00:16.2]} 34. Rf7 {[%clk 0:00:18.9]} 34...
Rf1+ {[%clk 0:00:15.2]} 35. Kc2 {[%clk 0:00:18.8]} 35... Rf2+ {[%clk 0:00:16.1]}
36. Kc1 {[%clk 0:00:18.3]} 36... Rf1+ {[%clk 0:00:16.4]} 37. Kc2 {[%clk
0:00:15.2]} 37... Rf2+ {[%clk 0:00:17.3]} 38. Kb3 {[%clk 0:00:14.7]} 38... Rf3+
{[%clk 0:00:15.4]} 39. Kb4 {[%clk 0:00:14.9]} 39... Rf5 {[%clk 0:00:14.4]} 40.
gxf6 {[%clk 0:00:14.6]} 40... gxf6 {[%clk 0:00:14.8]} 41. Rxf6 {[%clk
0:00:14.8]} 41... Rg5 {[%clk 0:00:15.2]} 42. Kxb5 {[%clk 0:00:14.4]} 42... Rg2
{[%clk 0:00:15.3]} 43. b4 {[%clk 0:00:14.1]} 43... Rxa2 {[%clk 0:00:15.7]} 44.
Kc5 {[%clk 0:00:13.2]} 44... g5 {[%clk 0:00:15.9]} 45. Kxd5 {[%clk 0:00:12.8]}
45... Rb2 {[%clk 0:00:16.5]} 46. Kc5 {[%clk 0:00:12.3]} 46... g4 {[%clk
0:00:17.1]} 47. Rg6 {[%clk 0:00:12.2]} 47... Rc2+ {[%clk 0:00:17.7]} 48. Kb6
{[%clk 0:00:12.2]} 48... Rg2 {[%clk 0:00:18.5]} 49. Rg8+ {[%clk 0:00:10]} 49...
Kd7 {[%clk 0:00:18.8]} 50. b5 {[%clk 0:00:10.9]} 50... Ke6 {[%clk 0:00:18.9]}
51. Kb7 {[%clk 0:00:11]} 51... Kf7 {[%clk 0:00:19.5]} 52. Rg7+ {[%clk
0:00:10.6]} 52... Ke6 {[%clk 0:00:19.9]} 53. b6 {[%clk 0:00:11.5]} 53... Rb2
{[%clk 0:00:19]} 54. Rc7 {[%clk 0:00:10.5]} 54... Kf5 {[%clk 0:00:18.7]} 55. Rc3
{[%clk 0:00:06.5]} 55... Rb5 {[%clk 0:00:17.7]} 56. Kc7 {[%clk 0:00:06.3]} 56...
Rb1 {[%clk 0:00:17.6]} 57. b7 {[%clk 0:00:05.9]} 57... Ke4 {[%clk 0:00:17.4]}
58. b8=Q {[%clk 0:00:06.1]} 58... Rxb8 {[%clk 0:00:17.9]} 59. Kxb8 {[%clk
0:00:06.7]} 59... Kf5 {[%clk 0:00:18.1]} 60. Rg3 {[%clk 0:00:07.4]} 60... Ke6
{[%clk 0:00:18.6]} 61. Kc7 {[%clk 0:00:07.5]} 61... Kd5 {[%clk 0:00:19.5]} 62.
Kd7 {[%clk 0:00:07.5]} 62... Ke4 {[%clk 0:00:19.9]} 63. Ke6 {[%clk 0:00:08.4]}
1/2-1/2

[Event "Late-Titled-Tuesday-Blitz-June-04-2024"]
[Site "Chess.com"]
[Date "2024.06.04"]
[Round "9"]
[White "NikitaShnadrygin"]
[Black "LeninGuerra"]
[Result "1-0"]
[WhiteElo "2712"]
[BlackElo "2558"]
[TimeControl "180+1"]
[EndTime "15:43:45 PDT"]
[Termination "NikitaShnadrygin won on time"]

1. e4 {[%clk 0:02:52.2]} 1... c5 {[%clk 0:03:00]} 2. b4 {[%clk 0:02:48.2]} 2...
cxb4 {[%clk 0:03:00]} 3. a3 {[%clk 0:02:48.3]} 3... bxa3 {[%clk 0:03:00.1]} 4.
Nxa3 {[%clk 0:02:47.4]} 4... d6 {[%clk 0:03:01]} 5. d4 {[%clk 0:02:46.5]} 5...
e6 {[%clk 0:03:00.4]} 6. Nf3 {[%clk 0:02:46.5]} 6... Nf6 {[%clk 0:03:00.8]} 7.
Bd3 {[%clk 0:02:47.1]} 7... Be7 {[%clk 0:03:01.2]} 8. O-O {[%clk 0:02:47.7]}
8... Nc6 {[%clk 0:03:01]} 9. c3 {[%clk 0:02:47.3]} 9... e5 {[%clk 0:03:01]} 10.
Nc4 {[%clk 0:02:41]} 10... Bg4 {[%clk 0:02:53.8]} 11. d5 {[%clk 0:02:10.3]}
11... Nb8 {[%clk 0:02:51.2]} 12. Qb3 {[%clk 0:02:07.6]} 12... Nbd7 {[%clk
0:02:12.1]} 13. Qxb7 {[%clk 0:02:01.6]} 13... O-O {[%clk 0:02:11.2]} 14. Qb1
{[%clk 0:01:52.7]} 14... Bxf3 {[%clk 0:02:01]} 15. gxf3 {[%clk 0:01:53.6]} 15...
Nh5 {[%clk 0:01:59.9]} 16. Na5 {[%clk 0:01:50.2]} 16... Bg5 {[%clk 0:01:53.8]}
17. Nc6 {[%clk 0:01:49.6]} 17... Qf6 {[%clk 0:01:54]} 18. Be3 {[%clk 0:01:30.6]}
18... Qxf3 {[%clk 0:01:37.5]} 19. Qd1 {[%clk 0:01:29.4]} 19... Qxd1 {[%clk
0:01:33]} 20. Rfxd1 {[%clk 0:01:28.9]} 20... Bxe3 {[%clk 0:01:33.3]} 21. fxe3
{[%clk 0:01:29.8]} 21... Nc5 {[%clk 0:01:30.3]} 22. Bc2 {[%clk 0:01:29.6]} 22...
g6 {[%clk 0:01:25.4]} 23. Nxa7 {[%clk 0:01:26.9]} 23... Rfb8 {[%clk 0:01:22.9]}
24. c4 {[%clk 0:01:13.3]} 24... Rb2 {[%clk 0:01:18.9]} 25. Rdc1 {[%clk
0:01:09.2]} 25... Nf6 {[%clk 0:01:18.1]} 26. h4 {[%clk 0:00:34.1]} 26... Kg7
{[%clk 0:01:16.9]} 27. Bd1 {[%clk 0:00:28]} 27... Nfxe4 {[%clk 0:01:15.1]} 28.
Nb5 {[%clk 0:00:26.1]} 28... Rxa1 {[%clk 0:01:12.2]} 29. Rxa1 {[%clk 0:00:27]}
29... Rd2 {[%clk 0:01:08]} 30. Bf3 {[%clk 0:00:26.6]} 30... Rd3 {[%clk 0:00:50]}
31. Bxe4 {[%clk 0:00:21.6]} 31... Nxe4 {[%clk 0:00:50.9]} 32. Re1 {[%clk
0:00:21.9]} 32... Kf6 {[%clk 0:00:43.5]} 33. Rf1+ {[%clk 0:00:21.8]} 33... Ke7
{[%clk 0:00:43.6]} 34. Ra1 {[%clk 0:00:21.1]} 34... Rxe3 {[%clk 0:00:40.6]} 35.
Ra7+ {[%clk 0:00:21.7]} 35... Kf6 {[%clk 0:00:38.2]} 36. Rd7 {[%clk 0:00:22.2]}
36... Re1+ {[%clk 0:00:19.8]} 37. Kg2 {[%clk 0:00:21.2]} 37... Rc1 {[%clk
0:00:20]} 38. Nxd6 {[%clk 0:00:21.1]} 38... Rc2+ {[%clk 0:00:15.9]} 39. Kf3
{[%clk 0:00:18.9]} 39... Nd2+ {[%clk 0:00:12.3]} 40. Kg3 {[%clk 0:00:12]} 40...
e4 {[%clk 0:00:08.5]} 41. Rc7 {[%clk 0:00:04.2]} 41... Rc3+ {[%clk 0:00:05]} 42.
Kf2 {[%clk 0:00:03.9]} 42... e3+ {[%clk 0:00:03.9]} 43. Ke2 {[%clk 0:00:04.2]}
43... Ke5 {[%clk 0:00:02.9]} 44. Nxf7+ {[%clk 0:00:04.7]} 44... Kd4 {[%clk
0:00:03.4]} 45. Ng5 {[%clk 0:00:05.6]} 45... Nxc4 {[%clk 0:00:02.3]} 46. Nf3+
{[%clk 0:00:05.6]} 46... Kxd5 {[%clk 0:00:01.9]} 47. Rd7+ {[%clk 0:00:06.5]} 1-0

[Event "Late-Titled-Tuesday-Blitz-June-04-2024"]
[Site "Chess.com"]
[Date "2024.06.04"]
[Round "9"]
[White "WPWPWP-2015"]
[Black "Jagerrmeisterr"]
[Result "0-1"]
[WhiteElo "2539"]
[BlackElo "2683"]
[TimeControl "180+1"]
[EndTime "15:43:45 PDT"]
[Termination "Jagerrmeisterr won by checkmate"]

1. e4 {[%clk 0:03:00.9]} 1... c6 {[%clk 0:02:56.5]} 2. d4 {[%clk 0:02:58.7]}
2... d5 {[%clk 0:02:56.5]} 3. Nc3 {[%clk 0:02:58.6]} 3... g6 {[%clk 0:02:55]} 4.
h3 {[%clk 0:02:57]} 4... Bg7 {[%clk 0:02:54.1]} 5. Nf3 {[%clk 0:02:57.2]} 5...
dxe4 {[%clk 0:02:51.8]} 6. Nxe4 {[%clk 0:02:56.8]} 6... Nf6 {[%clk 0:02:51.9]}
7. Bd3 {[%clk 0:02:45.2]} 7... O-O {[%clk 0:02:47.5]} 8. O-O {[%clk 0:02:44]}
8... Nxe4 {[%clk 0:02:47.4]} 9. Bxe4 {[%clk 0:02:43.6]} 9... Nd7 {[%clk
0:02:48.3]} 10. c3 {[%clk 0:02:42.8]} 10... Nf6 {[%clk 0:02:48.4]} 11. Bc2
{[%clk 0:02:41.1]} 11... b6 {[%clk 0:02:45.8]} 12. Re1 {[%clk 0:02:39.4]} 12...
Bb7 {[%clk 0:02:40.3]} 13. Qe2 {[%clk 0:02:38.6]} 13... e6 {[%clk 0:02:34.2]}
14. a4 {[%clk 0:02:37.2]} 14... c5 {[%clk 0:02:15]} 15. dxc5 {[%clk 0:02:33.9]}
15... bxc5 {[%clk 0:02:14.9]} 16. Rd1 {[%clk 0:02:28.2]} 16... Qc7 {[%clk
0:02:09]} 17. a5 {[%clk 0:02:27.7]} 17... Rad8 {[%clk 0:01:46.4]} 18. a6 {[%clk
0:02:22.9]} 18... Bd5 {[%clk 0:01:36.8]} 19. Be3 {[%clk 0:02:14.2]} 19... Rb8
{[%clk 0:01:26.9]} 20. Rdb1 {[%clk 0:02:05.6]} 20... Nd7 {[%clk 0:01:14.1]} 21.
Ra4 {[%clk 0:01:51.5]} 21... c4 {[%clk 0:01:00]} 22. Rb4 {[%clk 0:01:12.5]}
22... Rxb4 {[%clk 0:00:53.6]} 23. cxb4 {[%clk 0:01:12.5]} 23... Rb8 {[%clk
0:00:54.5]} 24. Bd2 {[%clk 0:01:09.3]} 24... Rb6 {[%clk 0:00:35.1]} 25. Bc3
{[%clk 0:00:55.9]} 25... Rxa6 {[%clk 0:00:34.8]} 26. Bxg7 {[%clk 0:00:36.9]}
26... Kxg7 {[%clk 0:00:34.7]} 27. Nd4 {[%clk 0:00:33.3]} 27... Rb6 {[%clk
0:00:06.2]} 28. Qd2 {[%clk 0:00:33]} 28... Nf6 {[%clk 0:00:06.1]} 29. Ra1 {[%clk
0:00:26.8]} 29... e5 {[%clk 0:00:05]} 30. Ne2 {[%clk 0:00:21]} 30... Qb7 {[%clk
0:00:05.6]} 31. f3 {[%clk 0:00:17]} 31... Rxb4 {[%clk 0:00:05.5]} 32. Qc3 {[%clk
0:00:05.9]} 32... Qb6+ {[%clk 0:00:04.8]} 33. Kh2 {[%clk 0:00:05.5]} 33... Nd7
{[%clk 0:00:05.2]} 34. Ra2 {[%clk 0:00:02.7]} 34... a5 {[%clk 0:00:05.1]} 35.
Ng3 {[%clk 0:00:01.3]} 35... Qf2 {[%clk 0:00:04.4]} 36. Ne4 {[%clk 0:00:02]}
36... Bxe4 {[%clk 0:00:04.4]} 37. Bxe4 {[%clk 0:00:02.5]} 37... f6 {[%clk
0:00:03.8]} 38. Rxa5 {[%clk 0:00:02.1]} 38... Rxb2 {[%clk 0:00:02.5]} 39. Qxb2
{[%clk 0:00:02.2]} 39... Qxb2 {[%clk 0:00:02.5]} 40. Ra7 {[%clk 0:00:03.1]}
40... Qd4 {[%clk 0:00:03.1]} 41. Rb7 {[%clk 0:00:03.3]} 41... f5 {[%clk
0:00:04]} 42. Bc6 {[%clk 0:00:03.1]} 42... c3 {[%clk 0:00:04.6]} 43. Rxd7+
{[%clk 0:00:03.4]} 43... Qxd7 {[%clk 0:00:04.9]} 44. Bxd7 {[%clk 0:00:04.3]}
44... c2 {[%clk 0:00:04.7]} 45. Ba4 {[%clk 0:00:05.2]} 45... c1=Q {[%clk
0:00:04.2]} 46. Bb3 {[%clk 0:00:06.1]} 46... Qf4+ {[%clk 0:00:04.4]} 47. Kg1
{[%clk 0:00:07]} 47... Qb4 {[%clk 0:00:05.3]} 48. Kh2 {[%clk 0:00:07.5]} 48...
Kf6 {[%clk 0:00:06]} 49. h4 {[%clk 0:00:08.3]} 49... Qxb3 {[%clk 0:00:06.6]} 50.
Kh3 {[%clk 0:00:08.5]} 50... g5 {[%clk 0:00:07.5]} 51. hxg5+ {[%clk 0:00:08.8]}
51... Kxg5 {[%clk 0:00:07.8]} 52. Kg3 {[%clk 0:00:09.7]} 52... f4+ {[%clk
0:00:08]} 53. Kh3 {[%clk 0:00:10.1]} 53... e4 {[%clk 0:00:08.7]} 54. Kh2 {[%clk
0:00:10.6]} 54... exf3 {[%clk 0:00:08.8]} 55. gxf3 {[%clk 0:00:10.8]} 55... Qxf3
{[%clk 0:00:08.7]} 56. Kg1 {[%clk 0:00:11.4]} 56... Qe2 {[%clk 0:00:08.7]} 57.
Kh1 {[%clk 0:00:11.3]} 57... Kg4 {[%clk 0:00:09.6]} 58. Kg1 {[%clk 0:00:11.9]}
58... Kg3 {[%clk 0:00:10.5]} 59. Kh1 {[%clk 0:00:12.3]} 59... Qg2# {[%clk
0:00:11.4]} 0-1

[Event "Late-Titled-Tuesday-Blitz-June-04-2024"]
[Site "Chess.com"]
[Date "2024.06.04"]
[Round "9"]
[White "Statham_01"]
[Black "subham777"]
[Result "0-1"]
[WhiteElo "2706"]
[BlackElo "2579"]
[TimeControl "180+1"]
[EndTime "15:43:46 PDT"]
[Termination "subham777 won by checkmate"]

1. e4 {[%clk 0:03:00.9]} 1... e6 {[%clk 0:02:59.8]} 2. d4 {[%clk 0:02:59.6]}
2... d5 {[%clk 0:02:59.7]} 3. Bd3 {[%clk 0:02:59.3]} 3... dxe4 {[%clk
0:02:58.7]} 4. Bxe4 {[%clk 0:03:00]} 4... Nf6 {[%clk 0:02:59.2]} 5. Bf3 {[%clk
0:03:00]} 5... Be7 {[%clk 0:02:58.9]} 6. Ne2 {[%clk 0:02:59.7]} 6... O-O {[%clk
0:02:59.5]} 7. Be3 {[%clk 0:03:00.1]} 7... Nbd7 {[%clk 0:02:58.2]} 8. Nbc3
{[%clk 0:03:00.2]} 8... c5 {[%clk 0:02:57.9]} 9. O-O {[%clk 0:02:59.4]} 9...
cxd4 {[%clk 0:02:50.2]} 10. Qxd4 {[%clk 0:02:57.8]} 10... Nb6 {[%clk 0:02:49.7]}
11. Rad1 {[%clk 0:02:48.6]} 11... Qxd4 {[%clk 0:02:44.5]} 12. Bxd4 {[%clk
0:02:49.5]} 12... Rd8 {[%clk 0:02:35.4]} 13. Nb5 {[%clk 0:02:43.9]} 13... Bd7
{[%clk 0:02:25]} 14. Nxa7 {[%clk 0:02:33.5]} 14... Nfd5 {[%clk 0:01:59.3]} 15.
Nc3 {[%clk 0:02:12.5]} 15... Bf6 {[%clk 0:01:43.6]} 16. Nab5 {[%clk 0:01:45.7]}
16... Bxb5 {[%clk 0:01:39.5]} 17. Nxb5 {[%clk 0:01:42.9]} 17... Bxd4 {[%clk
0:01:33.3]} 18. Rxd4 {[%clk 0:01:34.8]} 18... Rxa2 {[%clk 0:01:12]} 19. c4
{[%clk 0:01:23.5]} 19... Rxb2 {[%clk 0:01:11.3]} 20. Nc3 {[%clk 0:00:38.9]}
20... Rb4 {[%clk 0:00:47.1]} 21. Be2 {[%clk 0:00:16.3]} 21... Rc8 {[%clk
0:00:45.2]} 22. Na2 {[%clk 0:00:12.2]} 22... Rb2 {[%clk 0:00:36.5]} 23. cxd5
{[%clk 0:00:11.8]} 23... Rxe2 {[%clk 0:00:20.5]} 24. Nb4 {[%clk 0:00:08.9]}
24... exd5 {[%clk 0:00:15.3]} 25. Nxd5 {[%clk 0:00:09.4]} 25... Nxd5 {[%clk
0:00:16]} 26. Rxd5 {[%clk 0:00:10.3]} 26... Re7 {[%clk 0:00:15.8]} 27. g3 {[%clk
0:00:08.5]} 27... g6 {[%clk 0:00:11.8]} 28. Rb1 {[%clk 0:00:08.2]} 28... Rec7
{[%clk 0:00:09.7]} 29. Kg2 {[%clk 0:00:07.9]} 29... Kg7 {[%clk 0:00:07.6]} 30.
h4 {[%clk 0:00:07.9]} 30... h5 {[%clk 0:00:07.4]} 31. Rd3 {[%clk 0:00:08.5]}
31... Rb8 {[%clk 0:00:07]} 32. Rb6 {[%clk 0:00:08.4]} 32... Rc6 {[%clk 0:00:06]}
33. Rb4 {[%clk 0:00:09]} 33... b5 {[%clk 0:00:05.7]} 34. Rd7 {[%clk 0:00:08]}
34... Rcb6 {[%clk 0:00:06.1]} 35. Rf4 {[%clk 0:00:06.7]} 35... Rf6 {[%clk
0:00:04.8]} 36. Rb4 {[%clk 0:00:07.4]} 36... Rfb6 {[%clk 0:00:04.3]} 37. f3
{[%clk 0:00:07.6]} 37... R8b7 {[%clk 0:00:03.5]} 38. Rd8 {[%clk 0:00:07.8]}
38... Rb8 {[%clk 0:00:03.5]} 39. Rd7 {[%clk 0:00:07.9]} 39... R6b7 {[%clk
0:00:04.2]} 40. Rd6 {[%clk 0:00:08.1]} 40... f6 {[%clk 0:00:04.3]} 41. g4 {[%clk
0:00:08.2]} 41... hxg4 {[%clk 0:00:04.3]} 42. fxg4 {[%clk 0:00:09.1]} 42... Rc8
{[%clk 0:00:03.1]} 43. g5 {[%clk 0:00:07.9]} 43... fxg5 {[%clk 0:00:02.9]} 44.
hxg5 {[%clk 0:00:08.8]} 44... Rc5 {[%clk 0:00:02.7]} 45. Rg4 {[%clk 0:00:06.5]}
45... b4 {[%clk 0:00:03.1]} 46. Kh3 {[%clk 0:00:04]} 46... b3 {[%clk 0:00:02.9]}
47. Rd1 {[%clk 0:00:02.4]} 47... b2 {[%clk 0:00:02.1]} 48. Rb4 {[%clk
0:00:02.2]} 48... Rc3+ {[%clk 0:00:02.2]} 49. Kh2 {[%clk 0:00:01.6]} 49... Rxb4
{[%clk 0:00:02.8]} 50. Rd7+ {[%clk 0:00:02.4]} 50... Kf8 {[%clk 0:00:03.3]} 51.
Rd8+ {[%clk 0:00:03.3]} 51... Ke7 {[%clk 0:00:03.3]} 52. Rb8 {[%clk 0:00:04.2]}
52... Rc2+ {[%clk 0:00:03.4]} 53. Kh3 {[%clk 0:00:04.2]} 53... Rxb8 {[%clk
0:00:04.3]} 54. Kg3 {[%clk 0:00:04.9]} 54... Rb3+ {[%clk 0:00:04.7]} 55. Kg4
{[%clk 0:00:05.4]} 55... Rc4# {[%clk 0:00:05.6]} 0-1